Workbook

Sheet INVERSIÓN
C2: VAN | D2: ='VALORACIÓN Y RENTABILIDAD'!F2 -> 548675.2953
C3: TIR | D3: ='VALORACIÓN Y RENTABILIDAD'!F3 -> 0.1790491704
C4: TIR Capital | D4: ='VALORACIÓN Y RENTABILIDAD'!F4 -> 0.2736827112
F5: Cuadro de Amortización Técnica
B6: Concepto | C6: Cuantía | D6: Coef. | E6: 1 | F6: =E6+1 -> 2 | G6: =F6+1 -> 3 | H6: 4 | I6: 5
B7: Inmovilizado Material
B8: Terrenos | C8: 240000 | D8: 0 | E8: =D8*C8 -> 0 | F8: =IF($E8<($C8-SUM($E8:E8)),$E8,($C8-SUM($E8:E8))) -> 0 | G8: =IF($E8<($C8-SUM($E8:F8)),$E8,($C8-SUM($E8:F8))) -> 0 | H8: =IF($E8<($C8-SUM($E8:G8)),$E8,($C8-SUM($E8:G8))) -> 0 | I8: =IF($E8<($C8-SUM($E8:H8)),$E8,($C8-SUM($E8:H8))) -> 0
B9: Edificios | C9: 430000 | D9: 0.03 | E9: =D9*C9 -> 12900 | F9: =IF($E9<($C9-SUM($E9:E9)),$E9,($C9-SUM($E9:E9))) -> 12900 | G9: =IF($E9<($C9-SUM($E9:F9)),$E9,($C9-SUM($E9:F9))) -> 12900 | H9: =IF($E9<($C9-SUM($E9:G9)),$E9,($C9-SUM($E9:G9))) -> 12900 | I9: =IF($E9<($C9-SUM($E9:H9)),$E9,($C9-SUM($E9:H9))) -> 12900
B10: Maquinaria | C10: 73000 | D10: 0.12 | E10: 8760 | F10: =IF($E10<($C10-SUM($E10:E10)),$E10,($C10-SUM($E10:E10))) -> 8760 | G10: =IF($E10<($C10-SUM($E10:F10)),$E10,($C10-SUM($E10:F10))) -> 8760 | H10: =IF($E10<($C10-SUM($E10:G10)),$E10,($C10-SUM($E10:G10))) -> 8760 | I10: =IF($E10<($C10-SUM($E10:H10)),$E10,($C10-SUM($E10:H10))) -> 8760
B11: Equipamiento | C11: 61350 | D11: 0.15 | E11: 9202.5 | F11: =IF($E11<($C11-SUM($E11:E11)),$E11,($C11-SUM($E11:E11))) -> 9202.5 | G11: =IF($E11<($C11-SUM($E11:F11)),$E11,($C11-SUM($E11:F11))) -> 9202.5 | H11: =IF($E11<($C11-SUM($E11:G11)),$E11,($C11-SUM($E11:G11))) -> 9202.5 | I11: =IF($E11<($C11-SUM($E11:H11)),$E11,($C11-SUM($E11:H11))) -> 9202.5
B12: Mobiliario | C12: 140000 | D12: 0.12 | E12: 16800 | F12: =IF($E12<($C12-SUM($E12:E12)),$E12,($C12-SUM($E12:E12))) -> 16800 | G12: =IF($E12<($C12-SUM($E12:F12)),$E12,($C12-SUM($E12:F12))) -> 16800 | H12: =IF($E12<($C12-SUM($E12:G12)),$E12,($C12-SUM($E12:G12))) -> 16800 | I12: =IF($E12<($C12-SUM($E12:H12)),$E12,($C12-SUM($E12:H12))) -> 16800
B13: Equipos Informáticos | C13: 40000 | D13: 0.23 | E13: 9200 | F13: =IF($E13<($C13-SUM($E13:E13)),$E13,($C13-SUM($E13:E13))) -> 9200 | G13: =IF($E13<($C13-SUM($E13:F13)),$E13,($C13-SUM($E13:F13))) -> 9200 | H13: =IF($E13<($C13-SUM($E13:G13)),$E13,($C13-SUM($E13:G13))) -> 9200 | I13: =IF($E13<($C13-SUM($E13:H13)),$E13,($C13-SUM($E13:H13))) -> 3200
B14: Varios | C14: 34000 | D14: 0.15 | E14: 5100 | F14: =IF($E14<($C14-SUM($E14:E14)),$E14,($C14-SUM($E14:E14))) -> 5100 | G14: =IF($E14<($C14-SUM($E14:F14)),$E14,($C14-SUM($E14:F14))) -> 5100 | H14: =IF($E14<($C14-SUM($E14:G14)),$E14,($C14-SUM($E14:G14))) -> 5100 | I14: =IF($E14<($C14-SUM($E14:H14)),$E14,($C14-SUM($E14:H14))) -> 5100
B15: Otros | C15: 0 | D15: 0 | E15: 0 | F15: =IF($E15<($C15-SUM($E15:E15)),$E15,($C15-SUM($E15:E15))) -> 0 | G15: =IF($E15<($C15-SUM($E15:F15)),$E15,($C15-SUM($E15:F15))) -> 0 | H15: =IF($E15<($C15-SUM($E15:G15)),$E15,($C15-SUM($E15:G15))) -> 0 | I15: =IF($E15<($C15-SUM($E15:H15)),$E15,($C15-SUM($E15:H15))) -> 0
B16: Otros | C16: 0 | D16: 0 | E16: 0 | F16: =IF($E16<($C16-SUM($E16:E16)),$E16,($C16-SUM($E16:E16))) -> 0 | G16: =IF($E16<($C16-SUM($E16:F16)),$E16,($C16-SUM($E16:F16))) -> 0 | H16: =IF($E16<($C16-SUM($E16:G16)),$E16,($C16-SUM($E16:G16))) -> 0 | I16: =IF($E16<($C16-SUM($E16:H16)),$E16,($C16-SUM($E16:H16))) -> 0
B17: Total Inmovilizado Material | C17: =SUM(C8:C16) -> 1018350 | E17: =SUM(E8:E16) -> 61962.5 | F17: =SUM(F8:F16) -> 61962.5 | G17: =SUM(G8:G16) -> 61962.5 | H17: 61962.5 | I17: =SUM(I8:I16) -> 55962.5
B18: Inmovilizado Intangible
B19: Propiedad Intelectual | C19: 23000 | D19: 0.2 | E19: =D19*C19 -> 4600 | F19: =IF($E19<($C19-SUM($E19:E19)),$E19,($C19-SUM($E19:E19))) -> 4600 | G19: =IF($E19<($C19-SUM($E19:F19)),$E19,($C19-SUM($E19:F19))) -> 4600 | H19: =IF($E19<($C19-SUM($E19:G19)),$E19,($C19-SUM($E19:G19))) -> 4600 | I19: =IF($E19<($C19-SUM($E19:H19)),$E19,($C19-SUM($E19:H19))) -> 4600
B20: Aplicaciones Informáticas | C20: 3500 | D20: 0.2 | E20: =D20*C20 -> 700 | F20: =IF($E20<($C20-SUM($E20:E20)),$E20,($C20-SUM($E20:E20))) -> 700 | G20: =IF($E20<($C20-SUM($E20:F20)),$E20,($C20-SUM($E20:F20))) -> 700 | H20: =IF($E20<($C20-SUM($E20:G20)),$E20,($C20-SUM($E20:G20))) -> 700 | I20: =IF($E20<($C20-SUM($E20:H20)),$E20,($C20-SUM($E20:H20))) -> 700
B21: Otros | C21: 2450 | D21: 0.2 | E21: =D21*C21 -> 490 | F21: =IF($E21<($C21-SUM($E21:E21)),$E21,($C21-SUM($E21:E21))) -> 490 | G21: =IF($E21<($C21-SUM($E21:F21)),$E21,($C21-SUM($E21:F21))) -> 490 | H21: =IF($E21<($C21-SUM($E21:G21)),$E21,($C21-SUM($E21:G21))) -> 490 | I21: =IF($E21<($C21-SUM($E21:H21)),$E21,($C21-SUM($E21:H21))) -> 490
B22: Total Inmovilizado Intangible | C22: =SUM(C19:C21) -> 28950 | E22: =SUM(E19:E21) -> 5790 | F22: =SUM(F19:F21) -> 5790 | G22: =SUM(G19:G21) -> 5790 | H22: 5790 | I22: 5790
B24: Total Inmovilizado | C24: =C17+C22 -> 1047300 | E24: =E17+E22 -> 67752.5 | F24: 67752.5 | G24: =G17+G22 -> 67752.5 | H24: 67752.5 | I24: 61752.5
B27: Total Inversión Inicial
B28: Inmovilizado | C28: =C24 -> 1047300
B29: Fondo de Maniobra Inicial | C29: ='ESTADOS FINANCIEROS'!C34-'ESTADOS FINANCIEROS'!C43 -> 61166.66667
B30: Total | C30: =SUM(C28:C29) -> 1108466.667

Sheet FINANCIACIÓN
B2: Total a Financiar | C2: =INVERSIÓN!C30 -> 1108466.667 | G2: =INVERSIÓN!C2 -> VAN | H2: =INVERSIÓN!D2 -> 548675.2953
G3: =INVERSIÓN!C3 -> TIR | H3: =INVERSIÓN!D3 -> 0.1790491704
B4: Composición de la financiación inicial | G4: =INVERSIÓN!C4 -> TIR Capital | H4: =INVERSIÓN!D4 -> 0.2736827112
C5: Porcentaje | D5: Coste | E5: Cuantía
B6: Capital | C6: 0.4 | D6: 0.15 | E6: =C6*$C$2 -> 443386.6667
B7: Subvención | C7: 0.05 | E7: =C7*$C$2 -> 55423.33333
B8: Deuda | C8: =1-C7-C6 -> 0.55 | D8: =C13*(1-'ESTADOS FINANCIEROS'!E3) -> 0.042 | E8: =C8*$C$2 -> 609656.6667
C9: CCMP = | D9: =D6*C6+D8*C8 -> 0.0831
B11: Datos del préstamo
B12: Cuantía | C12: =E8 -> 609656.6667
B13: Tasa | C13: 0.06
B14: Duración | C14: 10
B16: Cuadro de amortización del préstamo
B17: Periodo | C17: 1 | D17: =C17+1 -> 2 | E17: =D17+1 -> 3 | F17: 4 | G17: 5 | H17: 6
B18: Cap. Pend. Inicial | C18: =C12 -> 609656.6667 | D18: =C18-C19 -> 563403.2602 | E18: =D18-D19 -> 514374.6492 | F18: 462404.3217 | G18: 407315.7745 | H18: =G18-G19 -> 348921.9144
B19: Amortización | C19: =IF(C17<=$C$14,-PPMT($C$13,C17,$C$14,$C$12),0) -> 46253.40652 | D19: =IF(D17<=$C$14,-PPMT($C$13,D17,$C$14,$C$12),0) -> 49028.61091 | E19: 51970.32756 | F19: 55088.54721 | G19: 58393.86005 | H19: =IF(H17<=$C$14,-PPMT($C$13,H17,$C$14,$C$12),0) -> 61897.49165
B20: Intereses | C20: =$C$13*C18 -> 36579.4 | D20: =$C$13*D18 -> 33804.19561 | E20: 30862.47895 | F20: 27744.2593 | G20: 24438.94647 | H20: =$C$13*H18 -> 20935.31487
B21: Cuota | C21: =C19+C20 -> 82832.80652 | D21: =D19+D20 -> 82832.80652 | E21: 82832.80652 | F21: 82832.80652 | G21: 82832.80652 | H21: 82832.80652
B22: Cap. Pend. Final | C22: =C18-C19 -> 563403.2602 | D22: =D18-D19 -> 514374.6492 | E22: 462404.3217 | F22: 407315.7745 | G22: 348921.9144 | H22: =H18-H19 -> 287024.4228

Sheet INGRESOS Y COSTES
B2: =FINANCIACIÓN!G2 -> VAN | C2: =FINANCIACIÓN!H2 -> 548675.2953
B3: =FINANCIACIÓN!G3 -> TIR | C3: =FINANCIACIÓN!H3 -> 0.1790491704
B4: =FINANCIACIÓN!G4 -> TIR Capital | C4: =FINANCIACIÓN!H4 -> 0.2736827112 | D4: =INVERSIÓN!E6 -> 1 | E4: =D4+1 -> 2 | F4: =E4+1 -> 3 | G4: 4 | H4: 5 | I4: 6
B5: IPC | C5: 0.03 | D5: =C5 -> 0.03 | E5: =D5 -> 0.03 | F5: 0.03 | G5: 0.03 | H5: 0.03
B6: Índice | D6: 1 | E6: =D6*(1+D5) -> 1.03 | F6: =E6*(1+E5) -> 1.0609 | G6: 1.092727 | H6: 1.12550881 | I6: 1.159274074
B8: Ingresos | D8: =D4 -> 1 | E8: 2 | F8: 3 | G8: 4 | H8: 5 | I8: 6
B9: Producto A
B10: Precio | C10: 50 | D10: =$C$10*D6 -> 50 | E10: 51.5 | F10: 53.045 | G10: 54.63635 | H10: 56.2754405 | I10: 57.96370372
B11: Unidades | C11: 5000 | D11: =C11 -> 5000 | E11: =D11*(1+E12) -> 6250 | F11: =E11*(1+F12) -> 7500 | G11: 8625 | H11: =G11*(1+H12) -> 9056.25 | I11: 9327.9375
B12: Crecimiento | E12: 0.25 | F12: 0.2 | G12: 0.15 | H12: 0.05 | I12: ='VALORACIÓN Y RENTABILIDAD'!C2 -> 0.03
B13: Ingresos | D13: =D11*D10 -> 250000 | E13: =E11*E10 -> 321875 | F13: 397837.5 | G13: =G11*G10 -> 471238.5187 | H13: 509644.458 | I13: =I11*I10 -> 540681.8055
B15: Producto B
B16: Precio | C16: 60 | D16: =$C$16*D6 -> 60 | E16: 61.8 | F16: 63.654 | G16: 65.56362 | H16: 67.5305286 | I16: 69.55644446
B17: Unidades | C17: 4000 | D17: =C17 -> 4000 | E17: =D17*(1+E18) -> 5200 | F17: =E17*(1+F18) -> 6240 | G17: =F17*(1+G18) -> 7176 | H17: =G17*(1+H18) -> 7534.8 | I17: 7760.844
B18: Crecimiento | E18: 0.3 | F18: 0.2 | G18: 0.15 | H18: 0.05 | I18: ='VALORACIÓN Y RENTABILIDAD'!C2 -> 0.03
B19: Ingresos | D19: =D17*D16 -> 240000 | E19: =E17*E16 -> 321360 | F19: 397200.96 | G19: =G17*G16 -> 470484.5371 | H19: 508829.0269 | I19: =I17*I16 -> 539816.7146
B21: Total Ingresos | D21: =D13+D19 -> 490000 | E21: 643235 | F21: 795038.46 | G21: 941723.0559 | H21: 1018473.485 | I21: 1080498.52
B23: Costes Fijos | D23: =D8 -> 1 | E23: 2 | F23: 3 | G23: 4 | H23: 5 | I23: 6
B24: Personal | C24: 160000 | D24: =$C24*D$6 -> 160000 | E24: 164800 | F24: 169744 | G24: 174836.32 | H24: =$C24*H$6 -> 180081.4096 | I24: 185483.8519
B25: Gastos Generales | C25: 35000 | D25: 35000 | E25: 36050 | F25: 37131.5 | G25: 38245.445 | H25: 39392.80835 | I25: 40574.5926
B26: Gastos Varios | C26: 15000 | D26: 15000 | E26: 15450 | F26: 15913.5 | G26: 16390.905 | H26: 16882.63215 | I26: 17389.11111
B27: Gastos de Constitución | C27: 2000 | D27: =C27 -> 2000
B28: Total Costes Fijos | D28: =SUM(D24:D27) -> 212000 | E28: =SUM(E24:E27) -> 216300 | F28: 222789 | G28: 229472.67 | H28: =SUM(H24:H27) -> 236356.8501 | I28: 243447.5556
B30: Costes Variables | D30: =D4 -> 1 | E30: 2 | F30: 3 | G30: 4 | H30: 5 | I30: 6
B31: =B9 -> Producto A
B32: Materias Primas | C32: 0.4 | D32: =$C32*D$13 -> 100000 | E32: 128750 | F32: 159135 | G32: 188495.4075 | H32: 203857.7832 | I32: 216272.7222
B33: Otros | C33: 0.1 | D33: 25000 | E33: 32187.5 | F33: 39783.75 | G33: 47123.85188 | H33: 50964.4458 | I33: 54068.18055
B34: ="Variables "&B31 -> Variables Producto A | D34: =SUM(D32:D33) -> 125000 | E34: 160937.5 | F34: 198918.75 | G34: 235619.2594 | H34: =SUM(H32:H33) -> 254822.229 | I34: 270340.9028
B36: =B15 -> Producto B
B37: Materias Primas | C37: 0.45 | D37: =$C37*D$19 -> 108000 | E37: 144612 | F37: 178740.432 | G37: 211718.0417 | H37: 228973.0621 | I37: 242917.5216
B38: Otros | C38: 0.08 | D38: 19200 | E38: 25708.8 | F38: 31776.0768 | G38: 37638.76297 | H38: 40706.32215 | I38: 43185.33717
B39: ="Variables "&B36 -> Variables Producto B | D39: =SUM(D37:D38) -> 127200 | E39: 170320.8 | F39: 210516.5088 | G39: 249356.8047 | H39: =SUM(H37:H38) -> 269679.3843 | I39: 286102.8588
B41: Total Materias Primas | D41: =D32+D37 -> 208000 | E41: 273362 | F41: 337875.432 | G41: 400213.4492 | H41: 432830.8453 | I41: 459190.2438
B43: Total Costes Variables | D43: =D34+D39 -> 252200 | E43: 331258.3 | F43: 409435.2588 | G43: 484976.064 | H43: 524501.6133 | I43: 556443.7615
B45: Costes Totales | D45: =D28+D43 -> 464200 | E45: 547558.3 | F45: 632224.2588 | G45: 714448.734 | H45: 760858.4634 | I45: 799891.3171

Sheet ESTADOS FINANCIEROS
B2: Datos para Fondo de Maniobra | D2: Varios
B3: Meses de Existencias | C3: 2 | D3: Tasa impositiva | E3: 0.3 | G3: ='INGRESOS Y COSTES'!B2 -> VAN | H3: ='INGRESOS Y COSTES'!C2 -> 548675.2953
B4: Meses de Cuentas a Cobrar | C4: 2 | D4: Interés Activo | E4: 0.05 | G4: ='INGRESOS Y COSTES'!B3 -> TIR | H4: ='INGRESOS Y COSTES'!C3 -> 0.1790491704
B5: Meses de Tesorería Operativa | C5: 1.5 | D5: Dividendos | E5: 0.4 | G5: ='INGRESOS Y COSTES'!B4 -> TIR Capital | H5: ='INGRESOS Y COSTES'!C4 -> 0.2736827112
B6: Meses de Cuentas a Pagar | C6: 1
D7: ='INGRESOS Y COSTES'!D8 -> 1 | E7: ='INGRESOS Y COSTES'!E8 -> 2 | F7: ='INGRESOS Y COSTES'!F8 -> 3 | G7: ='INGRESOS Y COSTES'!G8 -> 4 | H7: ='INGRESOS Y COSTES'!H8 -> 5
B8: Cuenta de Resultados | D8: =D7 -> 1 | E8: =E7 -> 2 | F8: 3 | G8: 4 | H8: 5
B9: Ingresos de Explotación | D9: ='INGRESOS Y COSTES'!D21 -> 490000 | E9: ='INGRESOS Y COSTES'!E21 -> 643235 | F9: ='INGRESOS Y COSTES'!F21 -> 795038.46 | G9: ='INGRESOS Y COSTES'!G21 -> 941723.0559 | H9: ='INGRESOS Y COSTES'!H21 -> 1018473.485
B10: Costes Variables | D10: ='INGRESOS Y COSTES'!D43 -> 252200 | E10: ='INGRESOS Y COSTES'!E43 -> 331258.3 | F10: ='INGRESOS Y COSTES'!F43 -> 409435.2588 | G10: ='INGRESOS Y COSTES'!G43 -> 484976.064 | H10: ='INGRESOS Y COSTES'!H43 -> 524501.6133
B11: Margen Bruto | D11: =D9-D10 -> 237800 | E11: =E9-E10 -> 311976.7 | F11: 385603.2012 | G11: =G9-G10 -> 456746.9918 | H11: 493971.8717
B12: Costes Fijos | D12: ='INGRESOS Y COSTES'!D28 -> 212000 | E12: ='INGRESOS Y COSTES'!E28 -> 216300 | F12: ='INGRESOS Y COSTES'!F28 -> 222789 | G12: ='INGRESOS Y COSTES'!G28 -> 229472.67 | H12: ='INGRESOS Y COSTES'!H28 -> 236356.8501
B13: Amortización | D13: =INVERSIÓN!E24 -> 67752.5 | E13: =INVERSIÓN!F24 -> 67752.5 | F13: =INVERSIÓN!G24 -> 67752.5 | G13: =INVERSIÓN!H24 -> 67752.5 | H13: =INVERSIÓN!I24 -> 61752.5
B14: BAIT | D14: =D11-D12-D13 -> -41952.5 | E14: =E11-E12-E13 -> 27924.2 | F14: 95061.7012 | G14: =G11-G12-G13 -> 159521.8218 | H14: 195862.5216
B15: Imputación de la Subvención | D15: =C40/5 -> 11084.66667 | E15: =D15 -> 11084.66667 | F15: 11084.66667 | G15: =F15 -> 11084.66667 | H15: =G15 -> 11084.66667
B16: Gastos Financieros | D16: =FINANCIACIÓN!C20 -> 36579.4 | E16: =FINANCIACIÓN!D20 -> 33804.19561 | F16: =FINANCIACIÓN!E20 -> 30862.47895 | G16: =FINANCIACIÓN!F20 -> 27744.2593 | H16: =FINANCIACIÓN!G20 -> 24438.94647
B17: Ingresos Financieros | D17: =$E$4*C35 -> 4.001776688e-12 | E17: =$E$4*D35 -> -1.164153218e-11 | F17: 0 | G17: 2421.465894 | H17: 6946.957824
B18: BAT | D18: =D14+D15-D16+D17 -> -67447.23333 | E18: =E14+E15-E16+E17 -> 5204.671058 | F18: 75283.88891 | G18: 145283.6951 | H18: 189455.1996
B19: Base Imponible | D19: =D18 -> -67447.23333 | E19: =IF(D19<0,E18+D19,E18) -> -62242.56228 | F19: 13041.32664 | G19: =IF(F19<0,G18+F19,G18) -> 145283.6951 | H19: =IF(G19<0,H18+G19,H18) -> 189455.1996
B20: Impuestos | D20: =MAX(0,$E$3*D19) -> 0 | E20: =MAX(0,$E$3*E19) -> 0 | F20: =MAX(0,$E$3*F19) -> 3912.397991 | G20: =MAX(0,$E$3*G19) -> 43585.10852 | H20: =MAX(0,$E$3*H19) -> 56836.55987
B21: BDT | D21: =D18-D20 -> -67447.23333 | E21: =E18-E20 -> 5204.671058 | F21: 71371.49092 | G21: =G18-G20 -> 101698.5866 | H21: 132618.6397
B22: Dividendos | E22: =MAX(0,$E$5*D21) -> 0 | F22: =MAX(0,$E$5*E21) -> 2081.868423 | G22: =MAX(0,$E$5*F21) -> 28548.59637 | H22: =MAX(0,$E$5*G21) -> 40679.43462
B23: Beneficio retenido | D23: =D21-D22 -> -67447.23333 | E23: =E21-E22 -> 5204.671058 | F23: 69289.6225 | G23: 73149.99019 | H23: 91939.20508
B25: Balance | C25: Inicio | D25: =D7 -> 1 | E25: =E7 -> 2 | F25: =F7 -> 3 | G25: =G7 -> 4 | H25: =H7 -> 5
B26: Inmovilizado Material | C26: =INVERSIÓN!C17 -> 1018350 | D26: =C26 -> 1018350 | E26: =D26 -> 1018350 | F26: =E26 -> 1018350 | G26: =F26 -> 1018350 | H26: =G26 -> 1018350
B27: (Amortización Acumulada) | D27: =C27+INVERSIÓN!E17 -> 61962.5 | E27: =D27+INVERSIÓN!F17 -> 123925 | F27: =E27+INVERSIÓN!G17 -> 185887.5 | G27: =F27+INVERSIÓN!H17 -> 247850 | H27: =G27+INVERSIÓN!I17 -> 303812.5
B28: Inmovilizado Intangible | C28: =INVERSIÓN!C22 -> 28950 | D28: =C28 -> 28950 | E28: =D28 -> 28950 | F28: =E28 -> 28950 | G28: =F28 -> 28950 | H28: =G28 -> 28950
B29: (Amortización Acumulada) | D29: =C29+INVERSIÓN!E22 -> 5790 | E29: =D29+INVERSIÓN!F22 -> 11580 | F29: =E29+INVERSIÓN!G22 -> 17370 | G29: =F29+INVERSIÓN!H22 -> 23160 | H29: =G29+INVERSIÓN!I22 -> 28950
B30: Inmovilizado Neto | C30: =C26+C28-C27-C29 -> 1047300 | D30: =D26+D28-D27-D29 -> 979547.5 | E30: 911795 | F30: =F26+F28-F27-F29 -> 844042.5 | G30: 776290 | H30: 714537.5
B31: Existencias | C31: =$C$3/12*'INGRESOS Y COSTES'!D41 -> 34666.66667 | D31: =$C$3/12*'INGRESOS Y COSTES'!E41 -> 45560.33333 | E31: =$C$3/12*'INGRESOS Y COSTES'!F41 -> 56312.572 | F31: =$C$3/12*'INGRESOS Y COSTES'!G41 -> 66702.24153 | G31: =$C$3/12*'INGRESOS Y COSTES'!H41 -> 72138.47422 | H31: =$C$3/12*'INGRESOS Y COSTES'!I41 -> 76531.7073
B32: Cuentas a Cobrar | D32: =$C$4/12*'INGRESOS Y COSTES'!D21 -> 81666.66667 | E32: =$C$4/12*'INGRESOS Y COSTES'!E21 -> 107205.8333 | F32: =$C$4/12*'INGRESOS Y COSTES'!F21 -> 132506.41 | G32: =$C$4/12*'INGRESOS Y COSTES'!G21 -> 156953.8426 | H32: =$C$4/12*'INGRESOS Y COSTES'!H21 -> 169745.5808
B33: Tesorería Operativa | C33: =$C$5/12*'INGRESOS Y COSTES'!D28 -> 26500 | D33: =$C$5/12*'INGRESOS Y COSTES'!E28 -> 27037.5 | E33: =$C$5/12*'INGRESOS Y COSTES'!F28 -> 27848.625 | F33: =$C$5/12*'INGRESOS Y COSTES'!G28 -> 28684.08375 | G33: =$C$5/12*'INGRESOS Y COSTES'!H28 -> 29544.60626 | H33: =$C$5/12*'INGRESOS Y COSTES'!I28 -> 30430.94445
B34: Activo Corriente | C34: =SUM(C31:C33) -> 61166.66667 | D34: =SUM(D31:D33) -> 154264.5 | E34: 191367.0303 | F34: =SUM(F31:F33) -> 227892.7353 | G34: 258636.9231 | H34: 276708.2326
B35: Excedente de Tesorería | C35: =C45-C30-C34 -> 8.003553376e-11 | D35: -2.328306437e-10 | E35: 0 | F35: 48429.31788 | G35: 138939.1565 | H35: 222199.9542
B36: Total Activo | C36: =C30+C34+C35 -> 1108466.667 | D36: =D30+D34+D35 -> 1133812 | E36: 1103162.03 | F36: =F30+F34+F35 -> 1120364.553 | G36: 1173866.08 | H36: 1213445.687
B38: Capital | C38: =FINANCIACIÓN!E6 -> 443386.6667 | D38: =MAX(C38,D30+D34-D39-D40-D42-D43-D44) -> 554833.9732 | E38: =MAX(D38,E30+E34-E39-E40-E42-E43-E44) -> 572146.085 | F38: =MAX(E38,F30+F34-F39-F40-F42-F43-F44) -> 572146.085 | G38: =MAX(F38,G30+G34-G39-G40-G42-G43-G44) -> 572146.085 | H38: =MAX(G38,H30+H34-H39-H40-H42-H43-H44) -> 572146.085
B39: Reservas | D39: =C39+D23 -> -67447.23333 | E39: =D39+E23 -> -62242.56228 | F39: 7047.060222 | G39: 80197.05041 | H39: 172136.2555
B40: Subvención | C40: =FINANCIACIÓN!E7 -> 55423.33333 | D40: =C40-D15 -> 44338.66667 | E40: =D40-E15 -> 33254 | F40: =E40-F15 -> 22169.33333 | G40: =F40-G15 -> 11084.66667 | H40: =G40-H15 -> 0
B41: Patrimonio Neto | C41: =C38+C39+C40 -> 498810 | D41: =D38+D39+D40 -> 531725.4065 | E41: 543157.5228 | F41: =F38+F39+F40 -> 601362.4786 | G41: =G38+G39+G40 -> 663427.8021 | H41: =H38+H39+H40 -> 744282.3405
B42: Deuda | C42: =FINANCIACIÓN!E8 -> 609656.6667 | D42: =FINANCIACIÓN!C22 -> 563403.2602 | E42: =FINANCIACIÓN!D22 -> 514374.6492 | F42: =FINANCIACIÓN!E22 -> 462404.3217 | G42: =FINANCIACIÓN!F22 -> 407315.7745 | H42: =FINANCIACIÓN!G22 -> 348921.9144
B43: Cuentas a Pagar | D43: =$C$6/12*'INGRESOS Y COSTES'!D45 -> 38683.33333 | E43: =$C$6/12*'INGRESOS Y COSTES'!E45 -> 45629.85833 | F43: =$C$6/12*'INGRESOS Y COSTES'!F45 -> 52685.3549 | G43: =$C$6/12*'INGRESOS Y COSTES'!G45 -> 59537.3945 | H43: =$C$6/12*'INGRESOS Y COSTES'!H45 -> 63404.87195
B44: Hacienda | D44: =D20 -> 0 | E44: =E20 -> 0 | F44: =F20 -> 3912.397991 | G44: =G20 -> 43585.10852 | H44: =H20 -> 56836.55987
B45: Total Patrimonio Neto y Pasivo | C45: =SUM(C41:C44) -> 1108466.667 | D45: =SUM(D41:D44) -> 1133812 | E45: 1103162.03 | F45: =SUM(F41:F44) -> 1120364.553 | G45: 1173866.08 | H45: 1213445.687
B47: Fondo de Maniobra Operativo | C47: =C34-C43-C44 -> 61166.66667 | D47: 115581.1667 | E47: 145737.172 | F47: 171294.9824 | G47: 155514.4201 | H47: 156466.8007
B49: Deuda Neta | C49: =C42-C35 -> 609656.6667 | D49: =D42-D35 -> 563403.2602 | E49: 514374.6492 | F49: 413975.0038 | G49: 268376.618 | H49: 126721.9602

Sheet VALORACIÓN Y RENTABILIDAD
B2: Crecimiento Residual | C2: 0.03 | E2: VAN | F2: =NPV(C5,D15:H15)+C15 -> 548675.2953
B3: Reinversión Residual | C3: 0.3 | E3: TIR | F3: =IRR(C15:H15) -> 0.1790491704
B4: Rentabilidad Residual implícita | C4: =C2/C3 -> 0.1 | E4: TIR Capital | F4: =IRR(C26:H26) -> 0.2736827112
B5: CCMP | C5: =FINANCIACIÓN!D9 -> 0.0831
B7: Flujos del Proyecto
C8: ='ESTADOS FINANCIEROS'!C25 -> Inicio | D8: ='ESTADOS FINANCIEROS'!D25 -> 1 | E8: ='ESTADOS FINANCIEROS'!E25 -> 2 | F8: ='ESTADOS FINANCIEROS'!F25 -> 3 | G8: ='ESTADOS FINANCIEROS'!G25 -> 4 | H8: ='ESTADOS FINANCIEROS'!H25 -> 5
B9: BAIT | D9: ='ESTADOS FINANCIEROS'!D14 -> -41952.5 | E9: ='ESTADOS FINANCIEROS'!E14 -> 27924.2 | F9: ='ESTADOS FINANCIEROS'!F14 -> 95061.7012 | G9: ='ESTADOS FINANCIEROS'!G14 -> 159521.8218 | H9: ='ESTADOS FINANCIEROS'!H14 -> 195862.5216
B10: NOPAT | D10: =D9*(1-'ESTADOS FINANCIEROS'!D20/'ESTADOS FINANCIEROS'!D18) -> -41952.5 | E10: =E9*(1-'ESTADOS FINANCIEROS'!E20/'ESTADOS FINANCIEROS'!E18) -> 27924.2 | F10: =F9*(1-'ESTADOS FINANCIEROS'!F20/'ESTADOS FINANCIEROS'!F18) -> 90121.47808 | G10: =G9*(1-'ESTADOS FINANCIEROS'!G20/'ESTADOS FINANCIEROS'!G18) -> 111665.2753 | H10: =H9*(1-'ESTADOS FINANCIEROS'!H20/'ESTADOS FINANCIEROS'!H18) -> 137103.7651
B11: + Amortización | D11: ='ESTADOS FINANCIEROS'!D13 -> 67752.5 | E11: ='ESTADOS FINANCIEROS'!E13 -> 67752.5 | F11: ='ESTADOS FINANCIEROS'!F13 -> 67752.5 | G11: ='ESTADOS FINANCIEROS'!G13 -> 67752.5 | H11: ='ESTADOS FINANCIEROS'!H13 -> 61752.5
B12: - Ajuste Fondo de Maniobra | C12: ='ESTADOS FINANCIEROS'!C47 -> 61166.66667 | D12: ='ESTADOS FINANCIEROS'!D47-'ESTADOS FINANCIEROS'!C47 -> 54414.5 | E12: ='ESTADOS FINANCIEROS'!E47-'ESTADOS FINANCIEROS'!D47 -> 30156.00533 | F12: ='ESTADOS FINANCIEROS'!F47-'ESTADOS FINANCIEROS'!E47 -> 25557.81039 | G12: ='ESTADOS FINANCIEROS'!G47-'ESTADOS FINANCIEROS'!F47 -> -15780.56229 | H12: ='ESTADOS FINANCIEROS'!H47-'ESTADOS FINANCIEROS'!G47 -> 952.3806511
B13: - Inversiones Inmovilizado | C13: ='ESTADOS FINANCIEROS'!C30 -> 1047300
B14: + Valor en Continuidad | H14: =H10*(1+C2)*(1-C3)/(C5-C2) -> 1861616.095
B15: Flujo Neto de Caja del Proyecto | C15: =C10+C11-C12-C13+C14 -> -1108466.667 | D15: =D10+D11-D12-D13+D14 -> -28614.5 | E15: 65520.69467 | F15: 132316.1677 | G15: 195198.3376 | H15: 2059519.979
B17: Flujos del Capital
C18: =C8 -> Inicio | D18: 1 | E18: 2 | F18: 3 | G18: 4 | H18: 5
B19: BDT | D19: ='ESTADOS FINANCIEROS'!D21 -> -67447.23333 | E19: ='ESTADOS FINANCIEROS'!E21 -> 5204.671058 | F19: ='ESTADOS FINANCIEROS'!F21 -> 71371.49092 | G19: ='ESTADOS FINANCIEROS'!G21 -> 101698.5866 | H19: ='ESTADOS FINANCIEROS'!H21 -> 132618.6397
B20: + Amortización | D20: =D11 -> 67752.5 | E20: 67752.5 | F20: 67752.5 | G20: 67752.5 | H20: 61752.5
B21: - Ajuste Fondo de Maniobra | C21: =C12 -> 61166.66667 | D21: 54414.5 | E21: 30156.00533 | F21: 25557.81039 | G21: -15780.56229 | H21: 952.3806511
B22: + Ajuste Deuda Neta | C22: ='ESTADOS FINANCIEROS'!C49 -> 609656.6667 | D22: ='ESTADOS FINANCIEROS'!D49-'ESTADOS FINANCIEROS'!C49 -> -46253.40652 | E22: ='ESTADOS FINANCIEROS'!E49-'ESTADOS FINANCIEROS'!D49 -> -49028.61091 | F22: ='ESTADOS FINANCIEROS'!F49-'ESTADOS FINANCIEROS'!E49 -> -100399.6454 | G22: ='ESTADOS FINANCIEROS'!G49-'ESTADOS FINANCIEROS'!F49 -> -145598.3858 | H22: ='ESTADOS FINANCIEROS'!H49-'ESTADOS FINANCIEROS'!G49 -> -141654.6578
B23: + Ajuste Subvención | C23: ='ESTADOS FINANCIEROS'!C40 -> 55423.33333 | D23: =-'ESTADOS FINANCIEROS'!D15 -> -11084.66667 | E23: =-'ESTADOS FINANCIEROS'!E15 -> -11084.66667 | F23: =-'ESTADOS FINANCIEROS'!F15 -> -11084.66667 | G23: =-'ESTADOS FINANCIEROS'!G15 -> -11084.66667 | H23: =-'ESTADOS FINANCIEROS'!H15 -> -11084.66667
B24: - Inversiones Inmovilizado | C24: =C13 -> 1047300
B25: + Valor en Continuidad | H25: =H14-'ESTADOS FINANCIEROS'!H49 -> 1734894.134
B26: Flujo Neto de Caja del Capital | C26: =C19+C20-C21+C22+C23-C24+C25 -> -443386.6667 | D26: =D19+D20-D21+D22+D23-D24+D25 -> -111447.3065 | E26: -17312.11185 | F26: 2081.868423 | G26: 28548.59637 | H26: 1775573.569
C28: Tasa | D28: =F2 -> 548675.2953 | F28: Tasa | G28: VAN
C29: 0.06 | D29: 1798708.454 | F29: 0.07 | G29: =NPV(F29,$D$15:$H$15)+$C$15 -> 647353.6876
C30: 0.07 | D30: 1082046.582 | F30: 0.08 | G30: 571399.998
C31: 0.08 | D31: 649953.0453 | F31: 0.09 | G31: 499431.4138
C32: 0.09 | D32: 360290.2999 | F32: 0.1 | G32: 431203.5425
C33: 0.1 | D33: 152132.1214 | F33: 0.11 | G33: 366489.0694
C34: 0.11 | D34: -4992.715934 | F34: 0.12 | G34: 305076.4223
C35: 0.12 | D35: -128019.2742 | F35: 0.13 | G35: 246768.5513
C36: 0.13 | D36: -227114.0353 | F36: 0.14 | G36: 191381.8127
C37: 0.14 | D37: -308751.1162 | F37: 0.15 | G37: 138744.9484
C38: 0.15 | D38: -377250.41 | F38: 0.16 | G38: 88698.15036
C39: 0.16 | D39: -435605.844 | F39: 0.17 | G39: 41092.2035
C40: 0.17 | D40: -485958.6938 | F40: 0.18 | G40: -4212.300734
C41: 0.18 | D41: -529881.5914 | F41: 0.19 | G41: -47345.68618
